[Event "Int SVK-ch Open 2020"]
[Site "Drienica"]
[Date "2020.08.15"]
[Round "7.20"]
[White "Durica, Andrej"]
[Black "Ferkova, Dominika"]
[Result "1-0"]
[ECO "B12"]
[WhiteElo "1911"]
[BlackElo "2111"]
[Annotator "ChessBase"]
[PlyCount "63"]
[EventDate "2020.08.07"]
[EventType "swiss"]
[EventCountry "SVK"]
[TimeControl "40/5400+30:1800+30"]

1. e4 {[%emt 0:00:00]} c6 {[%emt 0:00:00]} 2. d4 {[%emt 0:00:00]} d5 {[%emt 0:00:04]} 3. e5 {[%emt 0:00:01]} c5 {[%emt 0:00:04]} 4. Nf3 {[%emt 0:00:50]} Nc6 {[%emt 0:01:18]} 5. dxc5 {[%emt 0:00:23]} Bg4 {[%emt 0:01:38]} 6. c3 {[%emt 0:04:01]} e6 {[%emt 0:00:36]} 7. Be3 {[%emt 0:00:17]} a6 {[%emt 0:16:22]} 8. Bd4 {[%emt 0:01:21]} Qc7 {[%emt 0:05:33]} 9. Nbd2 {[%emt 0:01:49]} Nge7 {[%emt 0:03:07]} 10. h3 {[%emt 0:03:10]} Bxf3 {[%emt 0:00:10]} 11. Nxf3 {[%emt 0:00:08]} Ng6 {[%emt 0:02:24]} 12. Qe2 {[%emt 0:02:47]} Nce7 {[%emt 0:14:48]} 13. b4 {[%emt 0:02:58]} a5 {[%emt 0:03:40]} 14. Qb5+ {[%emt 0:08:52]} Nc6 {[%emt 0:00:44]} 15. Qa4 {[%emt 0:01:21]} Be7 {[%emt 0:02:29]} 16. b5 {[%emt 0:07:39]} Ncxe5 {[%emt 0:10:30]} 17. Nxe5 {[%emt 0:00:21]} Nxe5 {[%emt 0:00:32]} 18. b6+ {[%emt 0:00:13]} Qd7 {[%emt 0:00:11]} 19. Bb5 {[%emt 0:00:34]} Nc6 {[%emt 0:00:07]} 20. Rb1 {[%emt 0:11:02]} e5 {[%emt 0:07:27]} 21. Be3 {[%emt 0:02:21]} O-O {[%emt 0:01:13]} 22. O-O {[%emt 0:08:11]} Rfc8 {[%emt 0:04:53]} 23. Rfd1 {[%emt 0:00:05]} Qe6 {[%emt 0:01:30]} 24. Qb3 {[%emt 0:05:12]} Rd8 {[%emt 0:02:44]} 25. a4 {[%emt 0:03:57]} Rac8 {[%emt 0:02:55]} 26. Rd2 {[%emt 0:04:20]} Nb8 {[%emt 0:03:01]} 27. Rbd1 {[%emt 0:01:54]} Bxc5 {[%emt 0:04:53]} 28. Rxd5 {[%emt 0:00:46]} Bxb6 {[%emt 0:03:51]} 29. Bc4 {[%emt 0:06:43]} Re8 {[%emt 0:05:26]} 30. Rc5 {[%emt 0:03:57]} Qg6 {[%emt 0:02:06]} 31. Rxc8 {[%emt 0:01:10]} Rxc8 {[%emt 0:00:05]} 32. Qxb6 {[%emt 0:03:57]} 1-0

[Event "Int SVK-ch Open 2020"]
[Site "Drienica"]
[Date "2020.08.15"]
[Round "7.21"]
[White "Stevik, Patrik"]
[Black "Tomanek, Rafael"]
[Result "1-0"]
[ECO "A03"]
[WhiteElo "2047"]
[BlackElo "1835"]
[Annotator "ChessBase"]
[PlyCount "105"]
[EventDate "2020.08.07"]
[EventType "swiss"]
[EventCountry "SVK"]
[TimeControl "40/5400+30:1800+30"]

1. b3 {[%emt 0:00:00]} d5 {[%emt 0:00:00]} 2. Bb2 {[%emt 0:00:03]} Nf6 {[%emt 0:00:00]} 3. e3 {[%emt 0:00:41]} Bf5 {[%emt 0:00:09]} 4. f4 {[%emt 0:01:10]} e6 {[%emt 0:00:40]} 5. Nf3 {[%emt 0:00:07]} Be7 {[%emt 0:01:16]} 6. Be2 {[%emt 0:00:46]} Nbd7 {[%emt 0:04:00]} 7. O-O {[%emt 0:04:31]} O-O {[%emt 0:00:41]} 8. Ne5 {[%emt 0:05:53]} Nxe5 {[%emt 0:01:22]} 9. fxe5 {[%emt 0:00:23]} Nd7 {[%emt 0:00:22]} 10. Bf3 {[%emt 0:00:51]} c6 {[%emt 0:10:58]} 11. d4 {[%emt 0:03:16]} Qb6 {[%emt 0:11:06]} 12. Qe2 {[%emt 0:06:18]} a5 {[%emt 0:03:14]} 13. c4 {[%emt 0:04:55]} Qa6 {[%emt 0:03:56]} 14. Nc3 {[%emt 0:01:19]} Nb6 {[%emt 0:03:41]} 15. e4 {[%emt 0:01:16]} Bg6 {[%emt 0:01:03]} 16. cxd5 {[%emt 0:04:00]} Qxe2 {[%emt 0:01:27]} 17. Bxe2 {[%emt 0:00:56]} cxd5 {[%emt 0:00:32]} 18. exd5 {[%emt 0:00:14]} Nxd5 {[%emt 0:01:25]} 19. Nxd5 {[%emt 0:02:14]} exd5 {[%emt 0:00:03]} 20. Bf3 {[%emt 0:00:28]} Be4 {[%emt 0:08:14]} 21. Bxe4 {[%emt 0:02:24]} dxe4 {[%emt 0:00:54]} 22. Rae1 {[%emt 0:00:23]} f5 {[%emt 0:00:32]} 23. exf6 {[%emt 0:01:19]} Bxf6 {[%emt 0:00:43]} 24. Rxe4 {[%emt 0:00:36]} a4 {[%emt 0:04:00]} 25. Rf3 {[%emt 0:06:10]} axb3 {[%emt 0:04:04]} 26. Rxb3 {[%emt 0:01:32]} Rxa2 {[%emt 0:01:15]} 27. Rxb7 {[%emt 0:04:54]} Rd8 {[%emt 0:11:52]} 28. Kf1 {[%emt 0:03:22]} Rxb2 {[%emt 0:04:07]} 29. Rxb2 {[%emt 0:00:30]} Bxd4 {[%emt 0:00:30]} 30. Rbe2 {[%emt 0:00:30]} h6 {[%emt 0:00:30]} 31. Re8+ {[%emt 0:00:30]} Rxe8 {[%emt 0:00:13]} 32. Rxe8+ {[%emt 0:00:01]} Kf7 {[%emt 0:00:14]} 33. Rb8 {[%emt 0:00:15]} Kg6 {[%emt 0:00:57]} 34. Ke2 {[%emt 0:00:27]} Kh7 {[%emt 0:00:24]} 35. Kf3 {[%emt 0:02:03]} Be5 {[%emt 0:02:13]} 36. Rb1 {[%emt 0:01:45]} Bc3 {[%emt 0:00:08]} 37. Ke4 {[%emt 0:00:22]} Bf6 {[%emt 0:00:13]} 38. Kf5 {[%emt 0:00:25]} Bc3 {[%emt 0:00:38]} 39. Rb6 {[%emt 0:01:00]} Bd4 {[%emt 0:01:02]} 40. Rc6 {[%emt 0:00:14]} Bb2 {[%emt 0:00:25]} 41. g4 {[%emt 0:30:45]} Bd4 {[%emt 0:30:23]} 42. h4 {[%emt 0:00:24]} Bb2 {[%emt 0:04:58]} 43. g5 {[%emt 0:01:03]} hxg5 {[%emt 0:00:15]} 44. hxg5 {[%emt 0:00:13]} g6+ {[%emt 0:00:09]} 45. Rxg6 {[%emt 0:00:06]} Bc3 {[%emt 0:00:17]} 46. Rh6+ {[%emt 0:00:38]} Kg7 {[%emt 0:00:13]} 47. Rc6 {[%emt 0:00:04]} Bd4 {[%emt 0:00:37]} 48. Rc7+ {[%emt 0:00:10]} Kf8 {[%emt 0:00:37]} 49. Kg6 {[%emt 0:00:19]} Be5 {[%emt 0:01:04]} 50. Rf7+ {[%emt 0:00:06]} Kg8 {[%emt 0:01:48]} 51. Re7 {[%emt 0:00:06]} Bd6 {[%emt 0:00:10]} 52. Re8+ {[%emt 0:00:04]} Bf8 {[%emt 0:00:03]} 53. Rd8 {[%emt 0:00:05]} 1-0

[Event "Int SVK-ch Open 2020"]
[Site "Drienica"]
[Date "2020.08.13"]
[Round "7.21"]
[White "Magda, Juraj"]
[Black "Sevcik, Ondrej"]
[Result "1-0"]
[ECO "C01"]
[WhiteElo "1261"]
[BlackElo "1017"]
[Annotator "NA"]
[PlyCount "71"]
[EventDate "2020.08.07"]
[EventType "swiss"]
[EventCountry "SVK"]
[SourceTitle "playchess.com"]
[Source "ChessBase"]
[SourceQuality "1"]
[TimeControl "40/5400+30:1800+30"]

1. e4 {[%emt 0:00:00]} e6 {[%emt 0:00:00]} 2. d4 {[%emt 0:00:00]} d5 {[%emt 0:00:00]} 3. exd5 {[%emt 0:00:34]} exd5 {[%emt 0:00:00]} 4. Nf3 {[%emt 0:00:56]} Bd6 {[%emt 0:01:39]} 5. Nc3 {[%emt 0:00:46]} Nf6 {[%emt 0:00:24]} 6. Bg5 {[%emt 0:00:29]} Be6 {[%emt 0:00:35]} 7. Be2 {[%emt 0:03:45]} O-O {[%emt 0:00:19]} 8. O-O {[%emt 0:01:08]} Nbd7 {[%emt 0:00:19]} 9. Qd2 {[%emt 0:04:10]} h6 {[%emt 0:00:29]} 10. Bf4 {[%emt 0:01:17]} Bxf4 {[%emt 0:01:06]} 11. Qxf4 {[%emt 0:00:22]} c6 {[%emt 0:00:24]} 12. Rfe1 {[%emt 0:07:45]} Qb6 {[%emt 0:01:33]} 13. Na4 {[%emt 0:05:08]} Qa5 {[%emt 0:02:43]} 14. b3 {[%emt 0:03:42]} b5 {[%emt 0:00:39]} 15. Nb2 {[%emt 0:01:13]} Qc3 {[%emt 0:00:18]} 16. Qc1 {[%emt 0:02:10]} Rfe8 {[%emt 0:03:34]} 17. Nd1 {[%emt 0:01:24]} Qa5 {[%emt 0:00:42]} 18. Qd2 {[%emt 0:00:28]} Qxd2 {[%emt 0:00:47]} 19. Nxd2 {[%emt 0:00:13]} Bf5 {[%emt 0:00:17]} 20. Ne3 {[%emt 0:00:20]} Bh7 {[%emt 0:01:53]} 21. c3 {[%emt 0:03:11]} a5 {[%emt 0:00:26]} 22. Ng4 {[%emt 0:05:42]} Nxg4 {[%emt 0:00:30]} 23. Bxg4 {[%emt 0:00:06]} Nf6 {[%emt 0:01:00]} 24. Rxe8+ {[%emt 0:11:07]} Rxe8 {[%emt 0:00:24]} 25. Bh3 {[%emt 0:00:48]} Re2 {[%emt 0:00:59]} 26. Nf3 {[%emt 0:01:12]} Rc2 {[%emt 0:02:24]} 27. b4 {[%emt 0:04:05]} axb4 {[%emt 0:00:19]} 28. cxb4 {[%emt 0:00:02]} Rb2 {[%emt 0:00:35]} 29. a3 Kf8 30. Ne5 {[%emt 0:01:50]} Rc2 {[%emt 0:01:01]} 31. g3 {[%emt 0:04:28]} Be4 {[%emt 0:01:02]} 32. Bc8 {[%emt 0:03:14]} g6 {[%emt 0:00:58]} 33. Bb7 {[%emt 0:00:58]} Rd2 {[%emt 0:01:44]} 34. Nxc6 {[%emt 0:01:05]} Ke8 {[%emt 0:01:08]} 35. Ba6 {[%emt 0:00:33]} Kd7 {[%emt 0:00:40]} 36. Bxb5 1-0

[Event "Int SVK-ch Open 2020"]
[Site "Drienica"]
[Date "2020.08.13"]
[Round "7.22"]
[White "Geffert, Anton"]
[Black "Ondo, Tomas"]
[Result "0-1"]
[ECO "E90"]
[WhiteElo "1909"]
[BlackElo "2065"]
[Annotator "ChessBase"]
[PlyCount "42"]
[EventDate "2020.08.07"]
[EventType "swiss"]
[EventCountry "SVK"]
[SourceTitle "playchess.com"]
[Source "ChessBase"]
[SourceQuality "1"]
[TimeControl "40/5400+30:1800+30"]

1. d4 {[%emt 0:00:00]} Nf6 {[%emt 0:00:00]} 2. c4 {[%emt 0:00:00]} g6 {[%emt 0:00:00]} 3. Nc3 {[%emt 0:00:00]} Bg7 {[%emt 0:00:00]} 4. Nf3 {[%emt 0:00:19]} d6 {[%emt 0:00:12]} 5. e4 {[%emt 0:00:45]} O-O {[%emt 0:00:26]} 6. h3 {[%emt 0:00:10]} e5 {[%emt 0:02:36]} 7. d5 {[%emt 0:01:26]} Nh5 {[%emt 0:01:29]} 8. Be3 {[%emt 0:02:39]} f5 {[%emt 0:00:40]} 9. exf5 {[%emt 0:03:15]} gxf5 {[%emt 0:05:32]} 10. Nxe5 {[%emt 0:08:09]} Qe8 {[%emt 0:04:50]} 11. g4 {[%emt 0:12:03]} Qxe5 {[%emt 0:02:45]} 12. gxh5 {[%emt 0:00:37]} f4 {[%emt 0:03:06]} 13. Rg1 {[%emt 0:02:50]} fxe3 {[%emt 0:04:34]} 14. fxe3 {[%emt 0:01:52]} Qxe3+ {[%emt 0:01:11]} 15. Ne2 {[%emt 0:00:34]} Qf2+ {[%emt 0:01:54]} 16. Kd2 {[%emt 0:00:14]} Kh8 {[%emt 0:01:42]} 17. Rg2 {[%emt 0:01:54]} Bh6+ {[%emt 0:01:20]} 18. Kc3 {[%emt 0:03:27]} Rf3+ {[%emt 0:00:33]} 19. Qd3 {[%emt 0:04:07]} Rxd3+ {[%emt 0:00:14]} 20. Kxd3 {[%emt 0:00:30]} Bf5+ {[%emt 0:01:05]} 21. Kc3 {[%emt 0:00:22]} Qe3+ {[%emt 0:00:05]} 0-1

[Event "Int SVK-ch Open 2020"]
[Site "Drienica"]
[Date "2020.08.13"]
[Round "7.22"]
[White "Soldan, Jan"]
[Black "Horbalova, Ivana"]
[Result "1-0"]
[ECO "C42"]
[WhiteElo "1783"]
[BlackElo "1306"]
[Annotator "NA"]
[PlyCount "125"]
[EventDate "2020.08.07"]
[EventType "swiss"]
[EventCountry "SVK"]
[SourceTitle "playchess.com"]
[Source "ChessBase"]
[SourceQuality "1"]
[TimeControl "40/5400+30:1800+30"]

1. e4 e5 2. Nf3 Nf6 3. Nxe5 d6 4. Nf3 Nxe4 5. Qe2 Qe7 6. d3 Nf6 7. Bg5 Qxe2+ 8. Bxe2 Be7 9. Nc3 Bd7 10. O-O-O Ng4 11. Bxe7 Nxf2 12. Bh4 Nxh1 13. Rxh1 Na6 14. d4 c6 15. Bd3 Be6 16. Ng5 h6 17. Nxe6 fxe6 18. Re1 Kd7 19. d5 Nc7 20. dxe6+ Nxe6 21. Bf5 Rae8 22. g4 g5 23. Bg3 d5 24. Ne2 c5 25. Nc3 d4 26. Nd5 Rhf8 27. Nc7 Rxf5 28. Nxe8 Rf3 29. Nd6 Rxg3 30. hxg3 Kxd6 31. Rh1 b5 32. Rxh6 Kd5 33. Kd2 a5 34. Rf6 a4 35. b3 a3 36. Kd3 c4+ 37. bxc4+ bxc4+ 38. Kd2 c3+ 39. Ke2 Nc5 40. Rf5+ Kc4 41. Re5 Na6 42. Ra5 Nb4 43. Kd1 Nxa2 44. Rxa3 Nb4 45. Ra4 Kb5 46. Ra8 Nd5 47. Re8 Ne3+ 48. Rxe3 dxe3 49. Ke2 Kc5 50. Kd3 e2 51. Kxe2 Kd4 52. Kf3 Kc4 53. Ke4 Kc5 54. Kd3 Kd5 55. Kxc3 Kc5 56. Kd3 Kd5 57. Ke3 Ke5 58. c4 Kd6 59. Kd4 Kc6 60. Ke5 Kc5 61. Kf5 Kxc4 62. Kxg5 Kd5 63. Kf6 1-0

[Event "Int SVK-ch Open 2020"]
[Site "Drienica"]
[Date "2020.08.15"]
[Round "7.23"]
[White "Djubek, Boris"]
[Black "Striskova, Lucia"]
[Result "1-0"]
[ECO "D75"]
[WhiteElo "2019"]
[BlackElo "1706"]
[Annotator "ChessBase"]
[PlyCount "63"]
[EventDate "2020.08.07"]
[EventType "swiss"]
[EventCountry "SVK"]
[TimeControl "40/5400+30:1800+30"]

1. d4 {[%emt 0:00:00]} Nf6 {[%emt 0:00:00]} 2. Nf3 {[%emt 0:00:03]} g6 {[%emt 0:00:05]} 3. c4 {[%emt 0:00:18]} Bg7 {[%emt 0:00:35]} 4. Nc3 {[%emt 0:00:19]} d5 {[%emt 0:00:53]} 5. cxd5 {[%emt 0:01:04]} Nxd5 {[%emt 0:00:10]} 6. g3 {[%emt 0:01:51]} Nxc3 {[%emt 0:04:46]} 7. bxc3 {[%emt 0:00:14]} c5 {[%emt 0:00:11]} 8. Bg2 {[%emt 0:02:02]} Nc6 {[%emt 0:00:44]} 9. e3 {[%emt 0:01:27]} O-O {[%emt 0:04:48]} 10. O-O {[%emt 0:00:27]} Qc7 {[%emt 0:01:06]} 11. Ba3 {[%emt 0:02:45]} b6 {[%emt 0:05:23]} 12. dxc5 {[%emt 0:13:38]} Ba6 {[%emt 0:02:30]} 13. Nd4 {[%emt 0:09:37]} Bxd4 {[%emt 0:03:17]} 14. cxd4 {[%emt 0:00:54]} Bxf1 {[%emt 0:00:18]} 15. Qxf1 {[%emt 0:00:34]} Rac8 {[%emt 0:03:35]} 16. d5 {[%emt 0:08:28]} Ne5 {[%emt 0:03:59]} 17. c6 {[%emt 0:01:22]} Rfd8 {[%emt 0:02:14]} 18. e4 {[%emt 0:05:55]} Rb8 {[%emt 0:03:00]} 19. f4 {[%emt 0:02:40]} Ng4 {[%emt 0:00:38]} 20. Bf3 {[%emt 0:04:15]} Nf6 {[%emt 0:01:21]} 21. Rd1 {[%emt 0:01:01]} e6 {[%emt 0:03:28]} 22. Qc4 {[%emt 0:04:38]} exd5 {[%emt 0:06:08]} 23. exd5 {[%emt 0:00:25]} Ne8 {[%emt 0:00:10]} 24. Qd4 {[%emt 0:01:51]} f6 {[%emt 0:01:21]} 25. d6 {[%emt 0:01:23]} Qg7 {[%emt 0:02:52]} 26. Qc4+ {[%emt 0:03:45]} Kh8 {[%emt 0:00:16]} 27. c7 {[%emt 0:04:31]} Nxc7 {[%emt 0:00:20]} 28. dxc7 {[%emt 0:03:01]} Rxd1+ {[%emt 0:00:08]} 29. Bxd1 {[%emt 0:00:03]} Rc8 {[%emt 0:00:33]} 30. Bd6 {[%emt 0:01:57]} Qd7 {[%emt 0:01:16]} 31. Qd4 {[%emt 0:02:48]} Kg7 {[%emt 0:00:16]} 32. Bf8+ {[%emt 0:01:21]} 1-0

[Event "Int SVK-ch Open 2020"]
[Site "Drienica"]
[Date "2020.08.13"]
[Round "7.23"]
[White "Andras, Anton"]
[Black "Zahradnik, Vladimir"]
[Result "1-0"]
[ECO "B28"]
[WhiteElo "1582"]
[BlackElo "1874"]
[Annotator "NA"]
[PlyCount "83"]
[EventDate "2020.08.07"]
[EventType "swiss"]
[EventCountry "SVK"]
[SourceTitle "playchess.com"]
[Source "ChessBase"]
[SourceQuality "1"]
[TimeControl "40/5400+30:1800+30"]

1. e4 c5 2. Nf3 a6 3. d4 cxd4 4. Nxd4 Nf6 5. Nc3 Nc6 6. Be2 e5 {B33: Sicilian: Pelikan and Sveshnikov Variations.} 7. Nf5 d5 {[#]} 8. Nxd5 $146 ({Predecessor:} 8. exd5 Bxf5 9. dxc6 Qxd1+ 10. Nxd1 bxc6 11. Ne3 Be6 12. O-O Bc5 13. Re1 O-O 14. c3 {½-½ (47) Schmeing,W (2053)-Darwisch,M (1802) Germany 2010}) 8... Nxd5 9. Qxd5 Bxf5 10. Qxd8+ Rxd8 11. exf5 Nb4 {[#]} 12. Bd1 $1 Rc8 13. c3 Nd3+ 14. Ke2 Nc5 15. Bc2 Be7 16. Be3 Nd7 17. Rhe1 g6 (17... Bc5 $16 {might work better.} 18. Rad1 Ke7) 18. fxg6 hxg6 19. h3 b5 20. a3 f5 21. f3 Bf6 (21... Kf7 $16 22. Rad1 Nc5) 22. Rad1 Bh4 23. Bf2 Rc6 24. Rd5 Bxf2 25. Kxf2 Ke7 26. Red1 Rd8 27. g4 Rf6 28. g5 Re6 29. h4 e4 30. f4 Rb6 31. R1d4 $18 a5 32. Bd1 Rbb8 33. h5 Nf8 34. Rxd8 Rxd8 35. Rxd8 Kxd8 36. h6 Ke7 37. Bb3 Nh7 38. Bg8 Nf8 39. h7 Nxh7 40. Bxh7 Kf7 41. Bxg6+ Kxg6 42. b3 1-0

[Event "Int SVK-ch Open 2020"]
[Site "Drienica"]
[Date "2020.08.15"]
[Round "7.24"]
[White "Sevcikova, Lucia"]
[Black "Strapec, Lukas"]
[Result "1-0"]
[ECO "B22"]
[WhiteElo "2017"]
[BlackElo "1525"]
[Annotator "ChessBase"]
[PlyCount "119"]
[EventDate "2020.08.07"]
[EventType "swiss"]
[EventCountry "SVK"]
[TimeControl "40/5400+30:1800+30"]

1. e4 {[%emt 0:00:00]} c5 {[%emt 0:00:00]} 2. c3 {[%emt 0:00:00]} Nf6 {[%emt 0:00:49]} 3. e5 {[%emt 0:00:11]} Nd5 {[%emt 0:01:03]} 4. d4 {[%emt 0:00:44]} cxd4 {[%emt 0:01:15]} 5. Nf3 {[%emt 0:00:35]} Nc6 {[%emt 0:03:08]} 6. cxd4 {[%emt 0:00:36]} d6 {[%emt 0:04:17]} 7. Bc4 {[%emt 0:01:04]} Nb6 {[%emt 0:06:44]} 8. Bb5 {[%emt 0:01:27]} d5 {[%emt 0:12:24]} 9. Nc3 {[%emt 0:04:10]} Bf5 {[%emt 0:08:33]} 10. Bg5 {[%emt 0:04:43]} Rc8 {[%emt 0:09:01]} 11. O-O {[%emt 0:03:26]} h6 {[%emt 0:10:23]} 12. Bh4 {[%emt 0:02:01]} a6 {[%emt 0:02:35]} 13. Bd3 {[%emt 0:05:21]} Bg4 {[%emt 0:06:04]} 14. Be2 {[%emt 0:03:22]} Qd7 {[%emt 0:04:13]} 15. Rc1 {[%emt 0:06:37]} e6 {[%emt 0:04:45]} 16. Na4 {[%emt 0:03:49]} Nxa4 {[%emt 0:07:49]} 17. Qxa4 {[%emt 0:00:06]} Be7 {[%emt 0:01:25]} 18. Bxe7 {[%emt 0:03:13]} Nxe7 {[%emt 0:00:55]} 19. Rxc8+ {[%emt 0:01:27]} Nxc8 {[%emt 0:00:04]} 20. Qa5 {[%emt 0:03:51]} Bxf3 {[%emt 0:06:37]} 21. Bxf3 {[%emt 0:02:43]} Ne7 {[%emt 0:02:53]} 22. Rc1 {[%emt 0:01:59]} Nc6 {[%emt 0:00:39]} 23. Qb6 {[%emt 0:01:03]} O-O {[%emt 0:01:01]} 24. Be2 {[%emt 0:01:57]} Rc8 {[%emt 0:01:44]} 25. g3 {[%emt 0:01:21]} Qc7 {[%emt 0:01:55]} 26. Qc5 {[%emt 0:01:20]} Qd7 {[%emt 0:00:30]} 27. Rc3 {[%emt 0:02:38]} Ne7 {[%emt 0:01:21]} 28. Qb4 {[%emt 0:01:20]} Rxc3 {[%emt 0:00:37]} 29. Qxc3 {[%emt 0:00:49]} Qc6 {[%emt 0:00:53]} 30. Qc5 {[%emt 0:01:11]} Qxc5 {[%emt 0:00:24]} 31. dxc5 {[%emt 0:00:02]} Nc6 {[%emt 0:00:19]} 32. f4 {[%emt 0:00:48]} Kf8 {[%emt 0:00:21]} 33. Kf2 {[%emt 0:00:48]} Ke7 {[%emt 0:00:24]} 34. Ke3 {[%emt 0:02:02]} Kd7 {[%emt 0:00:42]} 35. a3 {[%emt 0:01:46]} Ne7 {[%emt 0:00:45]} 36. b4 {[%emt 0:01:54]} Kc6 {[%emt 0:00:37]} 37. g4 {[%emt 0:02:38]} g6 {[%emt 0:00:37]} 38. a4 {[%emt 0:02:27]} b5 {[%emt 0:00:32]} 39. axb5+ {[%emt 0:01:02]} axb5 {[%emt 0:00:06]} 40. Bd3 {[%emt 0:01:37]} h5 {[%emt 0:00:57]} 41. h3 {[%emt 0:31:54]} Ng8 {[%emt 0:17:57]} 42. f5 {[%emt 0:00:00]} hxg4 {[%emt 0:04:49]} 43. fxg6 {[%emt 0:00:00]} fxg6 {[%emt 0:01:47]} 44. hxg4 {[%emt 0:00:00]} g5 {[%emt 0:00:21]} 45. Bg6 {[%emt 0:00:00]} Kd7 {[%emt 0:02:28]} 46. c6+ {[%emt 0:00:00]} Kxc6 {[%emt 0:01:57]} 47. Bf7 {[%emt 0:00:00]} Ne7 {[%emt 0:01:03]} 48. Bxe6 {[%emt 0:00:00]} Ng6 {[%emt 0:00:59]} 49. Kd4 {[%emt 0:00:00]} Nf4 {[%emt 0:01:05]} 50. Bf7 {[%emt 0:00:00]} Ne2+ {[%emt 0:01:18]} 51. Ke3 {[%emt 0:00:00]} Nf4 {[%emt 0:00:10]} 52. Be8+ {[%emt 0:00:00]} Kb6 {[%emt 0:00:50]} 53. Bd7 {[%emt 0:00:00]} Ng6 {[%emt 0:00:50]} 54. Kd4 {[%emt 0:00:00]} Ne7 {[%emt 0:00:29]} 55. e6 {[%emt 0:00:26]} Ka6 {[%emt 0:01:10]} 56. Kc5 {[%emt 0:00:44]} Kb7 {[%emt 0:00:25]} 57. Kd6 {[%emt 0:02:04]} d4 {[%emt 0:00:38]} 58. Kxe7 {[%emt 0:01:27]} d3 {[%emt 0:00:08]} 59. Bxb5 {[%emt 0:00:07]} d2 {[%emt 0:00:08]} 60. Be2 {[%emt 0:00:01]} 1-0

[Event "Int SVK-ch Open 2020"]
[Site "Drienica"]
[Date "2020.08.15"]
[Round "7.25"]
[White "Nandrazi, Dominik"]
[Black "Kucera, Michal"]
[Result "0-1"]
[ECO "D00"]
[WhiteElo "1875"]
[BlackElo "1991"]
[Annotator "ChessBase"]
[PlyCount "118"]
[EventDate "2020.08.07"]
[EventType "swiss"]
[EventCountry "SVK"]
[TimeControl "40/5400+30:1800+30"]

1. d4 {[%emt 0:03:18]} Nf6 {[%emt 0:00:00]} 2. Bf4 {[%emt 0:00:04]} e6 {[%emt 0:00:00]} 3. Nc3 {[%emt 0:00:15]} d5 {[%emt 0:03:27]} 4. e3 {[%emt 0:00:05]} a6 {[%emt 0:03:26]} 5. Nf3 {[%emt 0:01:06]} Nbd7 {[%emt 0:04:29]} 6. Be2 {[%emt 0:01:35]} Be7 {[%emt 0:01:12]} 7. Ne5 {[%emt 0:01:47]} O-O {[%emt 0:00:21]} 8. g4 {[%emt 0:01:14]} c5 {[%emt 0:02:30]} 9. g5 {[%emt 0:03:47]} Ne4 {[%emt 0:02:43]} 10. Nxe4 {[%emt 0:00:30]} dxe4 {[%emt 0:00:06]} 11. h4 {[%emt 0:00:32]} Nxe5 {[%emt 0:01:22]} 12. dxe5 {[%emt 0:03:52]} Bd7 {[%emt 0:08:57]} 13. c3 {[%emt 0:00:36]} Bc6 {[%emt 0:03:52]} 14. Qc2 {[%emt 0:00:18]} Qa5 {[%emt 0:04:18]} 15. O-O {[%emt 0:02:22]} Rad8 {[%emt 0:01:30]} 16. Rfd1 {[%emt 0:00:19]} Rxd1+ {[%emt 0:04:11]} 17. Bxd1 {[%emt 0:00:16]} Rd8 {[%emt 0:04:04]} 18. Be2 {[%emt 0:01:09]} Rd7 {[%emt 0:03:03]} 19. Kh2 {[%emt 0:09:14]} Qd8 {[%emt 0:02:59]} 20. Rd1 {[%emt 0:00:22]} Rxd1 {[%emt 0:03:38]} 21. Qxd1 {[%emt 0:00:02]} Qxd1 {[%emt 0:02:26]} 22. Bxd1 {[%emt 0:00:02]} Kf8 {[%emt 0:03:20]} 23. Kg3 {[%emt 0:02:20]} Ke8 {[%emt 0:03:53]} 24. Kg4 {[%emt 0:00:26]} Kd7 {[%emt 0:07:13]} 25. Bg3 {[%emt 0:03:14]} b5 {[%emt 0:04:49]} 26. h5 {[%emt 0:02:47]} g6 {[%emt 0:00:10]} 27. hxg6 {[%emt 0:00:24]} hxg6 {[%emt 0:00:08]} 28. Kf4 {[%emt 0:00:13]} Bd5 {[%emt 0:03:16]} 29. a3 {[%emt 0:00:32]} Kc6 {[%emt 0:03:14]} 30. Bc2 {[%emt 0:00:12]} c4 {[%emt 0:04:45]} 31. Bh4 {[%emt 0:00:21]} a5 {[%emt 0:00:52]} 32. Bxe4 {[%emt 0:00:43]} Bxe4 {[%emt 0:00:49]} 33. Kxe4 {[%emt 0:00:02]} a4 {[%emt 0:06:50]} 34. f4 {[%emt 0:01:45]} Kc5 {[%emt 0:06:42]} 35. Bf2 {[%emt 0:00:11]} Kb6 {[%emt 0:00:28]} 36. Bg1 {[%emt 0:09:03]} Kc6 {[%emt 0:00:23]} 37. Kf3 {[%emt 0:00:48]} b4 {[%emt 0:00:50]} 38. cxb4 {[%emt 0:24:14]} Bxb4 {[%emt 0:00:07]} 39. e4 {[%emt 0:00:14]} c3 {[%emt 0:01:34]} 40. Bd4 {[%emt 0:00:10]} cxb2 {[%emt 0:00:12]} 41. Bxb2 {[%emt 0:30:01]} Bd2 {[%emt 0:31:15]} 42. f5 {[%emt 0:08:29]} Kc5 {[%emt 0:00:19]} 43. fxe6 {[%emt 0:02:02]} fxe6 {[%emt 0:00:02]} 44. Ke2 {[%emt 0:00:47]} Bxg5 {[%emt 0:00:09]} 45. Kd3 {[%emt 0:00:00]} Bf4 {[%emt 0:00:45]} 46. Bc3 {[%emt 0:00:22]} g5 {[%emt 0:00:00]} 47. Bb4+ {[%emt 0:00:00]} Kb5 {[%emt 0:00:00]} 48. Bd6 {[%emt 0:00:00]} g4 {[%emt 0:00:00]} 49. Bc7 {[%emt 0:00:00]} Bc1 {[%emt 0:00:00]} 50. Bd6 {[%emt 0:00:00]} g3 {[%emt 0:00:00]} 51. Ke2 {[%emt 0:00:00]} Kc4 {[%emt 0:00:00]} 52. Kf3 {[%emt 0:00:00]} Kb3 {[%emt 0:00:00]} 53. Kxg3 {[%emt 0:00:00]} Bxa3 {[%emt 0:00:00]} 54. Kg4 {[%emt 0:00:00]} Bb4 {[%emt 0:00:00]} 55. Kg5 {[%emt 0:00:00]} a3 {[%emt 0:00:00]} 56. Kf6 {[%emt 0:00:00]} a2 {[%emt 0:00:00]} 57. Bxb4 {[%emt 0:00:00]} Kxb4 {[%emt 0:00:00]} 58. Kxe6 {[%emt 0:00:00]} a1=Q {[%emt 0:00:00]} 59. Kf5 {[%emt 0:00:00]} Kc5 {[%emt 0:00:00]} 0-1